Cogmind - Beta 15 @@@ ROGUE MODE // 2025.05.07 @ 01:35:30 Player: jumpy Result: Self-destructed Performance ------------- Evolutions (1) 500 Regions Visited (5) 1000 Robots Destroyed (32) 160 Value Destroyed (621) 621 Prototype IDs (0) 0 Alien Tech Used (0) 0 Bonus (0) 0 TOTAL SCORE: 2281 Bonus ------- None Cogmind --------- Core Integrity 169/400 Matter 276/300 Energy 100/100 System Corruption 8% Temperature Cool (0) Movement Treading (160) Location -8/Mines Parts ------- > --- POWER (1) -------- (None) > --- PROPULSION (3) --- Light Treads > --- UTILITY (3) ------ Signal Interpreter > --- WEAPON (2) ------- (None) > --- INVENTORY (5) ---- Reinforced Ion Engine Reinforced Ion Engine Aluminum Leg Improved Light Cannon Mace Peak State ------------ > --- POWER ------------ Reinforced Ion Engine > --- PROPULSION ------- Light Treads Light Treads Light Treads > --- UTILITY ---------- Small Storage Unit Sensor Array Signal Interpreter > --- WEAPON ----------- Heavy Assault Rifle Heavy Assault Rifle > --- INVENTORY -------- Reinforced Ion Engine Reinforced Ion Engine Reinforced Ion Engine Aluminum Leg Improved Light Cannon Improved Light Cannon Improved Grenade Launcher Mace [Rating: 13] Favorites ----------- Power Reinforced Ion Engine Engine Reinforced Ion Engine Propulsion Light Treads Treads Light Treads Leg Aluminum Leg Wheel Compact Wheel Utility Small Storage Unit Device Seismic Detector Storage Small Storage Unit Processor Signal Interpreter Weapon Improved Light Cannon Energy Gun Small Laser Ballistic Gun Heavy Assault Rifle Ballistic Cannon Improved Light Cannon Build | -11 -10 -9 -9 -9 -8 ------- Run | Yrd Mat Mat Min Exi Min Slots Evolved 2 | . . 2 . . . Power . | . . . . . . Propulsion 1 | . . 1 . . . Utility 1 | . . 1 . . . Weapon . | . . . . . . Parts Attached 23 | 8 7 8 . . . Power 3 | 2 1 . . . . Engine 3 | 2 1 . . . . Core . | . . . . . . Reactor . | . . . . . . Propulsion 8 | 2 2 4 . . . Treads 4 | . . 4 . . . Leg 2 | 2 . . . . . Wheel 2 | . 2 . . . . Hover . | . . . . . . Flight . | . . . . . . Utility 4 | 2 . 2 . . . Device 2 | 1 . 1 . . . Storage 1 | 1 . . . . . Processor 1 | . . 1 . . . Hackware . | . . . . . . Protection . | . . . . . . Artifact . | . . . . . . Weapon 8 | 2 4 2 . . . Energy Gun 1 | 1 . . . . . Energy Cannon . | . . . . . . Ballistic Gun 3 | 1 . 2 . . . Ballistic Cannon 4 | . 4 . . . . Launcher . | . . . . . . Special Weapon . | . . . . . . Impact Weapon . | . . . . . . Slashing Weapon . | . . . . . . Piercing Weapon . | . . . . . . Special Melee Weapon . | . . . . . . Unidentified Prototypes . | . . . . . . Parts Lost 9 | . 1 1 1 3 3 Power 1 | . . . . . 1 Propulsion 3 | . . 1 . 1 1 Utility 2 | . . . 1 . 1 Weapon 3 | . 1 . . 2 . Highest Loss Streak 3 | . 1 1 1 3 3 To Critical Strikes . | . . . . . . Average Backups 6 | 2 7 7 8 8 8 Power 2 | . 2 3 3 3 3 Propulsion 1 | 1 2 1 1 1 1 Utility . | . 1 . . . . Weapon 2 | . 1 2 4 4 4 Tool/Special . | . . . . . . Unused Backups 8 | . . 2 . . 6 Power 3 | . . . . . 3 Propulsion 1 | . . 1 . . . Utility 1 | . . 1 . . . Weapon 3 | . . . . . 3 Tool/Special . | . . . . . . Average Slot Usage (%) 87 | . 99 80 90 83 52 Engine 11 | . 14 11 11 11 8 Treads 9 | . . 8 33 31 22 Leg 3 | . 8 . . . . Wheel 9 | . 19 6 . . . Device 10 | . 14 11 2 . . Storage 12 | . 14 11 11 11 11 Processor 6 | . . 10 11 11 11 Energy Gun 1 | . 3 . . . . Ballistic Gun 10 | . 3 13 22 18 . Ballistic Cannon 11 | . 21 8 . . . Peak Build Rating 13 | 7 11 13 13 12 7 Average Rating 9 | 5 10 11 12 11 6 On Entrance 8 | . 7 10 13 12 7 Naked Turns . | . . . . . . Heaviest Build 25 | 13 24 25 22 21 15 Greatest Support 60 | 20 26 60 60 60 40 Greatest Overweight (x) 1 | . 1 1 . . . Average Overweight (x) . | . . . . . . Largest Inventory Capacity 8 | 8 8 8 8 8 8 Average Capacity 7 | 7 8 8 8 8 7 Most Carried 8 | 4 8 8 8 8 8 Average Carried 6 | 2 7 7 8 8 7 Final Capacity 8 | 8 8 8 8 8 5 Final Carried 8 | 4 6 8 8 8 5 Class Distribution -------------------- 100% | Mutant Dominant Class ---------------- Mutant | -10/Materials Mutant | -9/Materials Mutant | -9/Mines Mutant | -9/Exiles Mutant | -8/Mines Resources | -11 -10 -9 -9 -9 -8 ----------- Run | Yrd Mat Mat Min Exi Min Matter Collected 973 | 313 135 377 148 . . Remotely . | . . . . . . Salvage Created 806 | 169 126 363 148 . . Parts 55 | 18 16 14 7 . . Haulers Intercepted . | . . . . . . Recyclers Shooed 1 | 1 . . . . . Parts Field Recycled . | . . . . . . Retrieved Matter . | . . . . . . Parts Self-Destructed . | . . . . . . Prevented . | . . . . . . Kills | -11 -10 -9 -9 -9 -8 ------- Run | Yrd Mat Mat Min Exi Min Combat Hostiles Destroyed 22 | . 9 8 5 . . Guns 9 | . . 4 5 . . Cannons 13 | . 9 4 . . . Classes Destroyed 9 | 2 5 2 . . . Worker 1 | . 1 . . . . Tunneler 5 | 5 . . . . . Recycler 2 | 1 . 1 . . . Operator 1 | . 1 . . . . Watcher 1 | . 1 . . . . Swarmer 11 | . 8 . 3 . . Grunt 6 | . 1 4 1 . . Brawler 2 | . . 1 1 . . Sentry 3 | . . 3 . . . Best Kill Streak 5 | 1 4 5 3 . . Combat Bots Only 4 | . 3 4 3 . . Max Kills in Single Turn 1 | 1 1 1 1 . . Gunslinging . | . . . . . . Exploded . | . . . . . . Melee . | . . . . . . Uniques/NPCs Destroyed . | . . . . . . Combat | -11 -10 -9 -9 -9 -8 -------- Run | Yrd Mat Mat Min Exi Min Hostile Shots Fired 164 | . 74 47 17 20 6 Missed 49 | . 22 17 3 7 . Hits 115 | . 52 30 14 13 6 Melee 13 | . . 1 4 2 6 Projectile 102 | . 52 29 10 11 . Critical Strikes 5 | . 1 2 1 . 1 Damage Taken 1591 | . 424 368 177 262 360 Core 269 | . 38 53 17 33 128 Absorbed by Shields . | . . . . . . Core Remaining (%) 92 | 100 84 . . . . Volleys Fired 118 | 33 36 39 10 . . Largest 2 | 2 2 2 2 . . Hottest 66 | 60 66 66 46 . . Shots Fired 233 | 66 69 78 19 1 . Gun 134 | 66 4 44 19 1 . Cannon 99 | . 65 34 . . . Launcher . | . . . . . . Special . | . . . . . . Kinetic 198 | 33 67 78 19 1 . Thermal 35 | 33 2 . . . . Explosive . | . . . . . . Electromagnetic . | . . . . . . Robot Hit Streak 8 | 4 5 8 7 3 . Robot Miss Streak 5 | 4 5 3 3 . . Penetration Max . | . . . . . . Secondary Targets . | . . . . . . Shots Hit Robots 122 | 32 32 46 11 1 . Core Hits 43 | 10 13 14 6 . . Critical Kills . | . . . . . . Critical Parts Destroyed 1 | . . 1 . . . Critical Strikes 4 | . 2 2 . . . Destroy 1 | . . 1 . . . Blast 3 | . 2 1 . . . Melee Attacks . | . . . . . . Impact . | . . . . . . Slashing . | . . . . . . Piercing . | . . . . . . Sneak Attacks . | . . . . . . Combat Hostiles . | . . . . . . Follow-up Attacks . | . . . . . . Damage Inflicted 1951 | 296 651 812 190 . 2 Guns 934 | 296 32 416 190 . . Cannons 1010 | . 619 391 . . . Explosions . | . . . . . . Melee . | . . . . . . Ramming 7 | . . 5 . . 2 Kinetic 1726 | 101 628 807 190 . . Thermal 218 | 195 23 . . . . Explosive . | . . . . . . Electromagnetic . | . . . . . . Impact . | . . . . . . Slashing . | . . . . . . Piercing . | . . . . . . Highest Corruption 8 | . . . 3 8 8 Average Corruption 3 | . . . 3 3 8 Corruption Purged . | . . . . . . Corruption Blocked . | . . . . . . Effects 7 | . . . 3 2 2 Message Errors 4 | . . . 2 1 1 Matter Fused 1 | . . . . . 1 Misfires 1 | . . . . 1 . Weapon Failures 1 | . . . 1 . . Overload Shots . | . . . . . . Overflow Damage 13 | . 13 . . . . Projectiles 13 | . 13 . . . . Explosions . | . . . . . . Melee . | . . . . . . Knockbacks 8 | . 7 1 . . . Impact . | . . . . . . Kinetic 8 | . 7 1 . . . Secondary . | . . . . . . Self-Inflicted Damage . | . . . . . . Shots . | . . . . . . Rammed 4 | . . 3 . . 1 Targets Rammed 4 | . . 3 . . 1 Kicked . | . . . . . . Crushed . | . . . . . . Highest Temperature 206 | 40 206 85 2 7 . Average Temperature 49 | 20 81 27 2 3 . Received Heat Transfer 217 | . . 165 12 40 . Siege Activations . | . . . . . . Martial Activations . | . . . . . . Shielding Activations . | . . . . . . Robots Disrupted . | . . . . . . Combat Hostiles . | . . . . . . Robots Corrupted . | . . . . . . Combat Hostiles . | . . . . . . Parts Fried . | . . . . . . Impact Corruptions . | . . . . . . Robots Melted . | . . . . . . Combat Hostiles . | . . . . . . Parts Melted . | . . . . . . Heat Transferred 500 | 450 50 . . . . Parts Sabotaged . | . . . . . . Parts Stolen . | . . . . . . Parts Stripped . | . . . . . . Power Chain Reactions . | . . . . . . Alert | -11 -10 -9 -9 -9 -8 ------- Run | Yrd Mat Mat Min Exi Min Maximum Alert Level . | . . . . . . Low Security (%) 100 | 100 100 100 100 . 100 Level 1 . | . . . . . . Level 2 . | . . . . . . Level 3 . | . . . . . . Level 4 . | . . . . . . Level 5 . | . . . . . . High Security . | . . . . . . Max Security . | . . . . . . Peak Influence 173 | 5 173 126 118 . . Initial 69 | . . 69 38 . . Average 55 | 1 64 76 83 . . Influence Increases 736 | 30 308 278 120 . . Destroy 0b10 Robot/C 440 | . 180 160 100 . . Destroy 0b10 Robot/NC 50 | 30 15 5 . . . Destroy Leader 102 | . 32 50 20 . . Disable Machine 30 | . 15 15 . . . Destroy Structure 9 | . 6 3 . . . Lose Combat Pursuer 105 | . 60 45 . . . Influence Decreases 736 | 30 143 344 111 108 . Entered New Map 265 | . . 96 61 108 . Time Decay 441 | 30 133 238 40 . . Lost Part 30 | . 10 10 10 . . Squads Dispatched 1 | . . 1 . . . Investigation . | . . . . . . Extermination . | . . . . . . Reinforcement 1 | . . 1 . . . Assault . | . . . . . . Garrison . | . . . . . . Intercept . | . . . . . . Searches Triggered . | . . . . . . Construction Impeded 1 | . . 1 . . . Haulers Reinforced . | . . . . . . Active Scanning Responses . | . . . . . . Cargo Convoy Interrupts . | . . . . . . Stealth | -11 -10 -9 -9 -9 -8 --------- Run | Yrd Mat Mat Min Exi Min Distress Signals 2 | . 1 1 . . . Communications Jammed . | . . . . . . Distress Signals . | . . . . . . Times Spotted 44 | . 15 15 5 8 1 Peak Tracking Total 9 | . 3 7 3 9 1 Tactical Retreats 4 | . 2 2 . . . Traps | -11 -10 -9 -9 -9 -8 ------- Run | Yrd Mat Mat Min Exi Min Traps Triggered . | . . . . . . Indirectly . | . . . . . . Trap Hack Attempts . | . . . . . . Triggered . | . . . . . . Disarmed . | . . . . . . Reprogrammed . | . . . . . . Reused . | . . . . . . Traps Extracted . | . . . . . . Installed . | . . . . . . Triggered . | . . . . . . Machines | -11 -10 -9 -9 -9 -8 ---------- Run | Yrd Mat Mat Min Exi Min Machines Disabled 2 | . 1 1 . . . Max in Single Turn 1 | . 1 1 . . . Machines Repaired . | . . . . . . Machines Dismantled . | . . . . . . Machines Sabotaged . | . . . . . . Overloaded Fab Kills . | . . . . . . Hacking | -11 -10 -9 -9 -9 -8 --------- Run | Yrd Mat Mat Min Exi Min Machines Accessed 1 | . . 1 . . . Terminals . | . . . . . . Fabricators . | . . . . . . Repair Stations . | . . . . . . Recycling Units . | . . . . . . Scanalyzers 1 | . . 1 . . . Garrison Access . | . . . . . . Total Hacks 4 | . . 4 . . . Successful 4 | . . 4 . . . Failed . | . . . . . . Catastrophic . | . . . . . . Database Lockouts . | . . . . . . Manual . | . . . . . . Terminals . | . . . . . . Fabricators . | . . . . . . Repair Stations . | . . . . . . Recycling Units . | . . . . . . Scanalyzers 4 | . . 4 . . . Garrison Access . | . . . . . . Terminal Hacks . | . . . . . . Fabricator Hacks . | . . . . . . Repair Station Hacks . | . . . . . . Recycling Unit Hacks . | . . . . . . Scanalyzer 4 | . . 4 . . . Insert Component 2 | . . 2 . . . Analyze 2 | . . 2 . . . Garrison Access Hacks . | . . . . . . Unauthorized Hacks . | . . . . . . Terminals . | . . . . . . Fabricators . | . . . . . . Repair Stations . | . . . . . . Recycling Units . | . . . . . . Scanalyzers . | . . . . . . Garrison Access . | . . . . . . Data Cores Recovered 1 | . 1 . . . . Used . | . . . . . . Hacking Detections . | . . . . . . Full Trace Events . | . . . . . . Feedback Events . | . . . . . . Feedback Blocked . | . . . . . . Robot Schematics Acquired . | . . . . . . Robots Built . | . . . . . . Authchips . | . . . . . . Time . | . . . . . . Total Robot Build Rating . | . . . . . . Part Schematics Acquired 2 | . . 2 . . . Parts Built . | . . . . . . Authchips . | . . . . . . Time . | . . . . . . Total Part Build Rating . | . . . . . . Parts Repaired . | . . . . . . Time . | . . . . . . Parts Recycled . | . . . . . . Recycled Matter . | . . . . . . Retrieved Matter . | . . . . . . Retrieved Components . | . . . . . . Parts Scanalyzed 2 | . . 2 . . . Part Schematics Acquired 2 | . . 2 . . . Parts Damaged . | . . . . . . Bothacking | -11 -10 -9 -9 -9 -8 ------------ Run | Yrd Mat Mat Min Exi Min Used RIF Installer . | . . . . . . Robots Hacked . | . . . . . . Non-combat . | . . . . . . Combat . | . . . . . . Robot Hacks Applied . | . . . . . . Relay Couplers Released . | . . . . . . Fabnet Peak Effective % . | . . . . . . Robots Rewired . | . . . . . . Allies Hacked . | . . . . . . Hacks Repelled . | . . . . . . Allies | -11 -10 -9 -9 -9 -8 -------- Run | Yrd Mat Mat Min Exi Min Total Allies . | . . . . . . Largest Group . | . . . . . . Highest-Rated Group . | . . . . . . Highest-Rated Ally . | . . . . . . Total Orders . | . . . . . . Ally Attacks . | . . . . . . Total Damage . | . . . . . . Kills . | . . . . . . Allies Corrupted . | . . . . . . Allies Melted . | . . . . . . Intel | -11 -10 -9 -9 -9 -8 ------- Run | Yrd Mat Mat Min Exi Min Active Infowar (turns) 1003 | 71 414 512 6 . . Sensors 491 | . . 485 6 . . Seismic 515 | 71 414 30 . . . Robot Analysis Total . | . . . . . . Derelict Logs Recovered . | . . . . . . Drone Launches . | . . . . . . Drone Recoveries . | . . . . . . Exploration | -11 -10 -9 -9 -9 -8 ------------- Run | Yrd Mat Mat Min Exi Min Turns Passed 1413 | 288 414 512 94 69 36 Spaces Moved 766 | 154 287 221 39 44 21 Core 5 | 5 . . . . . Treads 197 | . . 93 39 44 21 Legs 232 | 149 83 . . . . Wheels 332 | . 204 128 . . . Hover . | . . . . . . Flight . | . . . . . . Fastest Speed 50 | 50 90 90 160 160 160 Average Speed 125 | 117 102 146 160 160 160 Slowest Speed 240 | 120 190 240 160 160 160 Overloaded Moves . | . . . . . . Propulsion Burnouts . | . . . . . . Robots Hopped . | . . . . . . Potential Cave-ins . | . . . . . . Cave-ins Triggered . | . . . . . . Exploration Rate (%) 18 | 9 54 26 6 10 6 Regions Visited 5 Branch Regions 3 Pre-discovered Areas . | . . . . . . Known Exits Taken 3 | . . 1 1 1 . Unknown Exits Taken 2 | 1 1 . . . . Scrap Searched . | . . . . . . Spaces Dug . | . . . . . . Terrain Destroyed 7 | . 4 3 . . . Melee . | . . . . . . Projectile 7 | . 4 3 . . . AOE . | . . . . . . Terrain Rammed . | . . . . . . Walls Destroyed . | . . . . . . Machines Disabled . | . . . . . . Actions | -11 -10 -9 -9 -9 -8 --------- Run | Yrd Mat Mat Min Exi Min Total 980 | 197 339 328 51 43 22 Wait 49 | . 2 44 3 . . Move 761 | 153 286 220 38 43 21 Hop . | . . . . . . Pick Up 15 | 3 5 7 . . . Fast Attach 11 | 7 . 4 . . . Attach 2 | . 2 . . . . Detach . | . . . . . . Swap 10 | 1 5 4 . . . Drop 10 | . 3 7 . . . Fire 118 | 33 36 39 10 . . Melee . | . . . . . . Ram . | . . . . . . Kick . | . . . . . . Crush 4 | . . 3 . . 1 Escape Stasis . | . . . . . . Rewire . | . . . . . . Trap . | . . . . . . Miscellaneous . | . . . . . . Route ------- -11/Scrapyard -10/Materials -9/Materials (discovered 2 exits: *Min x2) -9/Mines -9/Exiles -8/Mines History --------- Turn | Location | Event 3 | -11/Scrapyard | Discovered new exit (range 15) 289 | -11/Scrapyard | Entered Materials 309 | -10/Materials | Build established: Mutant 686 | -10/Materials | Discovered new exit (range 12) 703 | -10/Materials | Entered another Materials area 703 | -9/Materials | Evolved 2 slots: Propulsion x1, Utility x1 888 | -9/Materials | Discovered new exit (range 5) 1109 | -9/Materials | Discovered new exit (range 7) 1213 | -9/Materials | Identified exit to Mines 1215 | -9/Materials | Entered Mines 1303 | -9/Mines | Deemed a non-threat by the Exiles lab entrance 1303 | -9/Mines | Discovered new exit (range 5) 1308 | -9/Mines | Identified exit to Exiles 1309 | -9/Mines | Entered Exiles 1348 | -9/Exiles | Attacked by the Exiles 1361 | -9/Exiles | Discovered new exit (range 14) 1377 | -9/Exiles | Identified exit to Mines 1378 | -9/Exiles | Entered Mines 1407 | -8/Mines | 1C-UTU came to Exiles' defense 1407 | -8/Mines | Lost 3 parts (1n2w) 1411 | -8/Mines | Core integrity fell below 50% 1414 | -8/Mines | Self-destructed Last Messages --------------- 01360_ HV Slug penetrates Wall. 01361_ EXIT=FOUND 01362_ Penetrated by HV Slug. 01362_ Lgt. Treads destroyed. 01362_ HV Slug penetrates Wall. 01363_ NLZ3VWIOPRNAR9XHK|FVU0